fUST/lending_fUST_20240903
["ID","MTS","AMOUNT","RATE_DAILY","PERIOD"]
[336995996,1725299446323,-151.0,0.00034692,14]
[336995998,1725299446333,-150.112233,0.000347,6]
[336996000,1725299446342,-150.112244,0.000347,7]
[336996002,1725299446351,-151.0,0.00034716,14]
[336996004,1725299446361,-151.0,0.00034716,14]
[336996005,1725299446370,-151.0,0.00034736,14]
[336996006,1725299446379,-151.0,0.00034747,14]
[336996007,1725299446389,-151.0,0.00034747,14]
[336996008,1725299446398,-151.0,0.00034757,14]
[336996009,1725299446407,-151.0,0.00034757,14]
[336996011,1725299446416,-150.01,0.00034782,2]
[336996013,1725299446425,-12009.82229254,0.00034782,2]
[336996014,1725299446434,-217.720911,0.000348,8]
[336996015,1725299446444,-90294.2237254,0.000348,7]
[336996016,1725299446454,-402.71,0.000348,14]
[336996017,1725299446464,-238.06,0.000348,30]
[336996019,1725299446474,-19837.12,0.000348,14]
[336996021,1725299446483,-1625.36,0.000348,14]
[336996022,1725299446493,-151.0,0.000348,14]
[336996023,1725299446502,-151.0,0.000348,14]
[336996024,1725299446513,-151.0,0.000348,14]
[336996025,1725299446525,-211.489037,0.000348,14]
[336996027,1725299446536,-211.489037,0.000348,14]
[336996029,1725299446545,-446.497625,0.000348,14]
[336996031,1725299446558,-446.497625,0.000348,14]
[336996032,1725299446568,-151.0,0.00034861,14]
[336996033,1725299446577,-211.489037,0.00034861,14]
[336996034,1725299446587,-211.489037,0.00034861,14]
[336996035,1725299446596,-446.497625,0.00034861,14]
[336996036,1725299446605,-446.497625,0.00034861,14]
[336996037,1725299446614,-1443.92378973,0.00034861,60]
[336996038,1725299446624,-174.86315301,0.00034861,2]
[336996039,1725299446634,-152500.0,0.00034861,40]
[336996040,1725299446644,-151.0,0.00034872,14]
[336996042,1725299446654,-180.49762,0.00034872,14]
[336996044,1725299446664,-2502.16680083,0.00034999,3]
[336996046,1725299446674,-2000.0,0.00035,60]
[336996047,1725299446683,-2000.0,0.00035,2]
[336996049,1725299446695,-150.112233,0.000357,6]
[336996050,1725299446705,-150.112233,0.000366,9]
[336996052,1725299446714,-150.112233,0.000375,7]
[336996054,1725299446723,-150.112233,0.000384,7]
[336996055,1725299446736,-500.0,0.00039,2]
[336996056,1725299446748,-150.112233,0.000393,8]
[336996057,1725299446758,-155.0,0.0003933,41]
[336996058,1725299446769,-185.414201,0.00039452,2]
[336996059,1725299446778,-266.277019,0.00039452,2]
[336996060,1725299446787,-500.0,0.0004,2]
[336996061,1725299446796,-1625.36,0.0004,14]
[336996062,1725299446805,-150.112233,0.000402,9]
[336996063,1725299446817,-238.06,0.000402,30]
[336996064,1725299446829,-402.71,0.000402,14]
[336996065,1725299446838,-19837.12,0.000402,14]
[336996066,1725299446849,-907.0,0.000408,30]
[336996067,1725299446857,-500.0,0.00041095,120]
[336996068,1725299446867,-500.0,0.00041095,120]
[336996069,1725299446876,-500.0,0.00041095,120]
[336996070,1725299446886,-500.0,0.00041095,120]
[336996071,1725299446895,-500.0,0.00041095,120]
[336996072,1725299446906,-307.05119466,0.00041095,120]
[336996073,1725299446915,-151.0,0.00041096,120]
[336996074,1725299446925,-151.0,0.00041096,120]
[336996075,1725299446934,-151.0,0.00041096,120]
[336996076,1725299446944,-151.0,0.00041096,120]
[336996077,1725299446953,-354.508368,0.00041096,120]
[336996078,1725299446962,-354.508368,0.00041096,120]
[336996079,1725299446971,-354.508368,0.00041096,120]
[336996080,1725299446980,-354.508368,0.00041096,120]
[336996081,1725299446990,-354.508368,0.00041096,120]
[336996082,1725299446999,-354.508368,0.00041096,120]
[336996083,1725299447009,-354.508368,0.00041096,120]
[336996084,1725299447018,-354.508368,0.00041096,120]
[336996085,1725299447028,-354.508368,0.00041096,120]
[336996086,1725299447038,-354.508368,0.00041096,120]
[336996087,1725299447047,-354.508368,0.00041096,120]
[336996088,1725299447060,-354.508368,0.00041096,120]
[336996089,1725299447069,-354.508368,0.00041096,120]
[336996090,1725299447078,-354.508368,0.00041096,120]
[336996091,1725299447087,-151.0,0.00041096,14]
[336996092,1725299447096,-151.0,0.00041096,14]
[336996093,1725299447106,-151.0,0.00041096,14]
[336996094,1725299447115,-151.0,0.00041096,14]
[336996095,1725299447125,-151.0,0.00041096,14]
[336996096,1725299447135,-151.0,0.00041096,14]
[336996097,1725299447145,-151.0,0.00041096,14]
[336996098,1725299447155,-317.446814,0.00041096,14]
[336996099,1725299447164,-317.446814,0.00041096,14]
[336996100,1725299447173,-317.446814,0.00041096,14]
[336996101,1725299447281,-317.446814,0.00041096,14]
[336996102,1725299447290,-317.446814,0.00041096,14]
[336996103,1725299447300,-317.446814,0.00041096,14]
[336996104,1725299447310,-317.446814,0.00041096,14]
[336996105,1725299447319,-317.446814,0.00041096,14]
[336996106,1725299447328,-317.446814,0.00041096,14]
[336996107,1725299447338,-317.446814,0.00041096,14]
[336996108,1725299447347,-317.446814,0.00041096,14]
[336996109,1725299447357,-317.446814,0.00041096,14]
[336996110,1725299447366,-317.446814,0.00041096,14]
[336996111,1725299447375,-317.446814,0.00041096,14]
[336996112,1725299447385,-151.0,0.00041096,120]
[336996113,1725299447394,-151.0,0.00041096,120]
[336996114,1725299447403,-151.0,0.00041096,120]
[336996115,1725299447413,-151.0,0.00041096,120]
[336996116,1725299447422,-151.0,0.00041096,120]
[336996117,1725299447431,-151.0,0.00041096,120]
[336996118,1725299447440,-151.0,0.00041096,120]
[336996119,1725299447450,-151.0,0.00041096,120]
[336996120,1725299447460,-151.0,0.00041096,120]
[336996121,1725299447470,-151.0,0.00041096,120]
[336996122,1725299447479,-151.0,0.00041096,120]
[336996123,1725299447488,-151.0,0.00041096,120]
[336996124,1725299447497,-151.0,0.00041096,120]
[336996125,1725299447507,-151.0,0.00041096,120]
[336996126,1725299447516,-151.0,0.00041096,120]
[336996127,1725299447526,-151.0,0.00041096,120]
[336996128,1725299447535,-151.0,0.00041096,120]
[336996129,1725299447545,-151.0,0.00041096,120]
[336996130,1725299447554,-151.0,0.00041096,120]
[336996131,1725299447565,-151.0,0.00041096,120]
[336996132,1725299447574,-151.0,0.00041096,120]
[336996133,1725299447585,-151.0,0.00041096,120]
[336996134,1725299447594,-151.0,0.00041096,120]
[336996135,1725299447605,-198.571955,0.00041096,120]
[336996136,1725299447614,-151.0,0.00041096,120]
[336996137,1725299447623,-151.0,0.00041096,120]
[336996138,1725299447632,-151.0,0.00041096,120]
[336996139,1725299447641,-275.866958,0.00041096,120]
[336996140,1725299447651,-151.0,0.00041096,120]
[336996141,1725299447660,-151.0,0.00041096,120]
[336996142,1725299447669,-151.0,0.00041096,120]
[336996143,1725299447678,-151.0,0.00041096,120]
[336996144,1725299447687,-151.0,0.00041096,120]
[336996145,1725299447700,-151.0,0.00041096,120]
[336996146,1725299447709,-151.0,0.00041096,120]
[336996147,1725299447719,-151.0,0.00041096,120]
[336996148,1725299447728,-299.846972,0.00041096,120]
[336996149,1725299447739,-151.0,0.00041096,120]
[336996150,1725299447748,-151.0,0.00041096,120]
[336996151,1725299447758,-151.0,0.00041096,120]
[336996152,1725299447768,-151.0,0.00041096,120]
[336996153,1725299447779,-151.0,0.00041096,120]
[336996154,1725299447789,-151.0,0.00041096,120]
[336996155,1725299447798,-151.0,0.00041096,120]
[336996156,1725299447809,-151.0,0.00041096,120]
[336996157,1725299447819,-151.0,0.00041096,120]
[336996158,1725299447829,-271.516374,0.00041096,120]
[336996159,1725299447839,-151.0,0.00041096,120]
[336996160,1725299447848,-151.0,0.00041096,120]
[336996161,1725299447857,-354.508368,0.00041096,120]
[336996162,1725299447868,-354.508368,0.00041096,120]
[336996163,1725299447877,-151.0,0.00041096,14]
[336996164,1725299447887,-317.446814,0.00041096,14]
[336996165,1725299447897,-211.489037,0.00041096,120]
[336996166,1725299447906,-317.446814,0.00041096,14]
[336996167,1725299447916,-211.489037,0.00041096,120]
[336996168,1725299447927,-151.0,0.00041096,120]
[336996169,1725299447936,-252.852194,0.00041096,120]
[336996170,1725299447946,-446.497625,0.00041096,120]
[336996171,1725299447956,-446.497625,0.00041096,120]
[336996172,1725299447966,-151.0,0.00041096,120]
[336996173,1725299447975,-150.112233,0.000411,10]
[336996174,1725299447985,-285.205674,0.00041918,120]
[336996175,1725299447995,-20000.0,0.00042,120]
[336996176,1725299448004,-150.112233,0.00042,5]
[336996177,1725299448014,-1000.0,0.00042,120]
[336996178,1725299448024,-151.0,0.00042,120]
[336996179,1725299448033,-151.0,0.00042,120]
[336996180,1725299448043,-354.508368,0.00042,120]
[336996181,1725299448053,-354.508368,0.00042,120]
[336996182,1725299448063,-293.052284,0.00042,14]
[336996183,1725299448072,-317.446814,0.00042,14]
[336996184,1725299448082,-211.489037,0.00042,120]
[336996185,1725299448091,-317.446814,0.00042,14]
[336996186,1725299448101,-211.489037,0.00042,120]
[336996187,1725299448111,-151.0,0.00042,120]
[336996188,1725299448121,-446.497625,0.00042,120]
[336996189,1725299448130,-446.497625,0.00042,120]
[336996190,1725299448139,-151.0,0.00042,120]
[336996191,1725299448149,-500.0,0.00042465,120]
[336996192,1725299448159,-500.0,0.00042465,120]
[336996193,1725299448169,-500.0,0.00042465,120]
[336996194,1725299448179,-644.3152886,0.00042465,120]
[336996195,1725299448189,-2837.91690933,0.000425,120]
[336996196,1725299448199,-150.112233,0.000429,5]
[336996197,1725299448208,-500.0,0.00043,5]
[336996198,1725299448218,-166.66,0.00043735,7]
[336996199,1725299448228,-167.84,0.00043735,7]
[336996200,1725299448237,-150.723,0.00043784,2]
[336996201,1725299448247,-523.0,0.00043784,2]
[336996202,1725299448256,-150.114,0.00043784,2]
[336996203,1725299448265,-150.0,0.00043784,2]
[336996204,1725299448275,-43733.91135156,0.000438,120]
[336996205,1725299448284,-151.0,0.000438,120]
[336996206,1725299448294,-151.0,0.000438,120]
[336996207,1725299448303,-354.508368,0.000438,120]
[336996208,1725299448312,-354.508366,0.000438,120]
[336996209,1725299448322,-317.446814,0.000438,14]
[336996210,1725299448331,-211.489037,0.000438,120]
[336996211,1725299448341,-317.446817,0.000438,14]
[336996212,1725299448351,-211.489045,0.000438,120]
[336996213,1725299448361,-151.0,0.000438,120]
[336996214,1725299448370,-446.497625,0.000438,120]
[336996215,1725299448380,-446.497625,0.000438,120]
[336996216,1725299448389,-151.0,0.000438,120]
[336996217,1725299448398,-500.0,0.00043835,120]
[336996218,1725299448408,-500.0,0.00043835,120]
[336996219,1725299448418,-500.0,0.00043835,120]
[336996220,1725299448427,-500.0,0.00043835,120]
[336996221,1725299448436,-500.0,0.00043835,120]
[336996222,1725299448445,-500.0,0.00043835,120]
[336996223,1725299448455,-500.0,0.00043835,120]
[336996224,1725299448465,-505.26356632,0.00043835,120]
[336996225,1725299448474,-500.0,0.00043835,120]
[336996226,1725299448483,-500.0,0.00043835,120]
[336996227,1725299448493,-500.0,0.00043835,120]
[336996228,1725299448502,-500.0,0.00043835,120]
[336996229,1725299448512,-500.0,0.00043835,120]
[336996230,1725299448521,-500.0,0.00043835,120]
[336996231,1725299448530,-500.0,0.00043835,120]
[336996232,1725299448539,-500.0,0.00043835,120]
[336996233,1725299448549,-500.0,0.00043835,120]
[336996234,1725299448558,-500.0,0.00043835,120]
[336996235,1725299448568,-500.0,0.00043835,120]
[336996236,1725299448577,-500.0,0.00043835,120]
[336996237,1725299448587,-500.0,0.00043835,120]
[336996238,1725299448596,-500.0,0.00043835,120]
[336996239,1725299448606,-507.66665283,0.00043835,120]
[336996240,1725299448615,-500.0,0.00043835,120]
[336996241,1725299448625,-500.0,0.00043835,120]
[336996242,1725299448636,-500.0,0.00043835,120]
[336996243,1725299448646,-500.0,0.00043835,120]
[336996244,1725299448656,-500.95889531,0.00043835,120]
[336996245,1725299448666,-500.61879629,0.00043835,120]
[336996246,1725299448676,-457.60562486,0.00043835,120]
[336996247,1725299448686,-500.0,0.00043835,120]
[336996248,1725299448700,-505.82479342,0.00043835,120]
[336996249,1725299448710,-572.3146325,0.00043835,120]
[336996250,1725299448721,-500.0,0.00043835,120]
[336996251,1725299448731,-500.0,0.00043835,120]
[336996252,1725299448741,-500.0,0.00043835,120]
[336996253,1725299448752,-500.0,0.00043835,120]
[336996254,1725299448761,-500.0,0.00043835,120]
[336996255,1725299448774,-588.33,0.00043835,120]
[336996256,1725299448784,-500.0,0.00043835,120]
[336996257,1725299448794,-312.22824934,0.00043835,120]
[336996258,1725299448804,-500.0,0.00043835,120]
[336996259,1725299448815,-500.0,0.00043835,120]
[336996260,1725299448824,-500.0,0.00043835,120]
[336996261,1725299448833,-500.0,0.00043835,120]
[336996262,1725299448842,-500.0,0.00043835,120]
[336996263,1725299448852,-502.87759677,0.00043835,120]
[336996264,1725299448861,-501.37242975,0.00043835,120]
[336996265,1725299448871,-500.0,0.00043835,120]
[336996266,1725299448880,-500.0,0.00043835,120]
[336996267,1725299448889,-500.0,0.00043835,120]
[336996268,1725299448899,-500.0,0.00043835,120]
[336996269,1725299448908,-500.0,0.00043835,120]
[336996270,1725299448918,-500.34472066,0.00043835,2]
[336996271,1725299448927,-443.52602092,0.00043835,120]
[336996272,1725299448937,-500.0,0.00043835,120]
[336996273,1725299448946,-500.0,0.00043835,120]
[336996274,1725299448956,-500.0,0.00043835,30]
[336996275,1725299448966,-522.35068819,0.00043835,120]
[336996276,1725299448975,-500.0,0.00043835,120]
[336996277,1725299448985,-503.04928506,0.00043835,120]
[336996278,1725299448994,-500.0,0.00043835,120]
[336996279,1725299449093,-500.0,0.00043835,120]
[336996280,1725299449103,-500.0,0.00043835,120]
[336996281,1725299449113,-500.0,0.00043835,120]
[336996282,1725299449123,-500.0,0.00043835,120]
[336996283,1725299449133,-500.0,0.00043835,120]
[336996284,1725299449143,-500.0,0.00043835,120]
[336996285,1725299449153,-500.0,0.00043835,120]
[336996286,1725299449163,-500.0,0.00043835,120]
[336996287,1725299449173,-1913.8,0.00043835,120]
[336996288,1725299449183,-500.0,0.00043835,120]
[336996289,1725299449192,-500.0,0.00043835,120]
[336996290,1725299449202,-500.0,0.00043835,120]
[336996291,1725299449211,-299.50221561,0.00043835,120]
[336996292,1725299449221,-500.0,0.00043835,120]
[336996293,1725299449230,-500.0,0.00043835,120]
[336996294,1725299449239,-500.0,0.00043835,120]
[336996295,1725299449249,-502.30849553,0.00043835,120]
[336996296,1725299449258,-500.0,0.00043835,120]
[336996297,1725299449267,-500.0,0.00043835,120]
[336996298,1725299449277,-500.0,0.00043835,120]
[336996299,1725299449287,-500.0,0.00043835,120]
[336996300,1725299449297,-523.45507545,0.00043835,120]
[336996301,1725299449306,-500.0,0.00043835,120]
[336996302,1725299449326,-500.0,0.00043835,120]
[336996303,1725299449336,-500.0,0.00043835,120]
[336996304,1725299449345,-500.0,0.00043835,120]
[336996305,1725299449355,-500.0,0.00043835,120]
[336996306,1725299449364,-500.0,0.00043835,120]
[336996307,1725299449374,-151.0,0.00043835,120]
[336996308,1725299449383,-151.0,0.00043835,120]
[336996309,1725299449392,-151.0,0.00043835,120]
[336996310,1725299449402,-500.0,0.00043835,120]
[336996311,1725299449412,-500.0,0.00043835,120]
[336996312,1725299449422,-500.0,0.00043835,120]
[336996313,1725299449431,-500.0,0.00043835,120]
[336996314,1725299449442,-500.0,0.00043835,120]
[336996315,1725299449453,-500.0,0.00043835,120]
[336996316,1725299449463,-502.40806551,0.00043835,120]
[336996317,1725299449472,-500.0,0.00043835,120]
[336996318,1725299449482,-500.0,0.00043835,120]
[336996319,1725299449492,-473.35921096,0.00043835,120]
[336996320,1725299449502,-500.0,0.00043835,120]
[336996321,1725299449511,-500.0,0.00043835,120]
[336996322,1725299449522,-500.0,0.00043835,120]
[336996323,1725299449532,-500.0,0.00043835,120]
[336996324,1725299449543,-500.0,0.00043835,10]
[336996325,1725299449554,-501.5864036,0.00043835,120]
[336996326,1725299449565,-500.0,0.00043835,120]
[336996327,1725299449575,-500.0,0.00043835,120]
[336996328,1725299449584,-500.92979144,0.00043835,120]
[336996329,1725299449594,-500.0,0.00043835,120]
[336996330,1725299449603,-500.0,0.00043835,120]
[336996331,1725299449612,-500.0,0.00043835,120]
[336996332,1725299449622,-500.0,0.00043835,120]
[336996333,1725299449633,-500.0,0.00043835,120]
[336996334,1725299449643,-500.0,0.00043835,120]
[336996335,1725299449654,-500.0,0.00043835,120]
[336996336,1725299449664,-500.0,0.00043835,120]
[336996337,1725299449674,-520.83,0.00043835,120]
[336996338,1725299449684,-259.10014053,0.00043835,120]
[336996339,1725299449698,-528.49702242,0.00043835,120]
[336996340,1725299449708,-500.0,0.00043835,120]
[336996341,1725299449720,-500.0,0.00043835,120]
[336996342,1725299449731,-500.0,0.00043835,120]
[336996343,1725299449743,-500.0,0.00043835,120]
[336996344,1725299449753,-500.0,0.00043835,2]
[336996345,1725299449762,-500.0,0.00043835,120]
[336996346,1725299449773,-500.0,0.00043835,120]
[336996347,1725299449782,-500.0,0.00043835,120]
[336996348,1725299449791,-500.0,0.00043835,120]
[336996349,1725299449801,-500.0,0.00043835,120]
[336996350,1725299449811,-500.0,0.00043835,120]
[336996351,1725299449823,-527.96210237,0.00043835,120]
[336996352,1725299449835,-395.05004339,0.00043835,120]
[336996353,1725299449845,-500.0,0.00043835,2]
[336996354,1725299449857,-500.0,0.00043835,120]
[336996355,1725299449866,-500.0,0.00043835,120]
[336996356,1725299449876,-500.0,0.00043835,120]
[336996357,1725299449885,-500.0,0.00043835,120]
[336996358,1725299449895,-500.0,0.00043835,120]
[336996359,1725299449904,-500.0,0.00043835,120]
[336996360,1725299449914,-796.73,0.00043835,120]
[336996361,1725299449923,-500.0,0.00043835,120]
[336996362,1725299449932,-500.0,0.00043835,120]
[336996363,1725299449942,-500.0,0.00043835,120]
[336996364,1725299449951,-529.6,0.00043835,120]
[336996365,1725299449960,-309.70892531,0.00043835,120]
[336996366,1725299449971,-500.0,0.00043835,120]
[336996367,1725299449980,-512.69040343,0.00043835,120]
[336996368,1725299449990,-502.00677004,0.00043835,120]
[336996369,1725299450000,-500.0,0.00043835,120]
[336996370,1725299450009,-500.0,0.00043835,120]
[336996371,1725299450018,-500.0,0.00043835,120]
[336996372,1725299450028,-523.39865041,0.00043835,120]
[336996373,1725299450037,-500.0,0.00043835,120]
[336996374,1725299450046,-500.0,0.00043835,120]
[336996375,1725299450057,-500.0,0.00043835,120]
[336996376,1725299450069,-500.0,0.00043835,120]
[336996377,1725299450079,-500.0,0.00043835,120]
[336996378,1725299450088,-500.0,0.00043835,120]
[336996379,1725299450098,-500.0,0.00043835,120]
[336996380,1725299450108,-500.0,0.00043835,120]
[336996381,1725299450117,-503.81904186,0.00043835,120]
[336996382,1725299450129,-500.0,0.00043835,120]
[336996383,1725299450139,-500.0,0.00043835,120]
[336996384,1725299450149,-500.0,0.00043835,120]
[336996385,1725299450159,-500.0,0.00043835,120]
[336996386,1725299450170,-500.0,0.00043835,120]
[336996387,1725299450180,-500.0,0.00043835,120]
[336996388,1725299450189,-632.22781016,0.00043835,120]
[336996389,1725299450199,-500.0,0.00043835,120]
[336996390,1725299450208,-500.0,0.00043835,120]
[336996391,1725299450218,-521.89476161,0.00043835,120]
[336996392,1725299450227,-500.0,0.00043835,120]
[336996393,1725299450237,-504.42841578,0.00043835,120]
[336996394,1725299450246,-500.0,0.00043835,120]
[336996395,1725299450256,-500.0,0.00043835,120]
[336996396,1725299450265,-500.0,0.00043835,120]
[336996397,1725299450275,-236.67096896,0.00043835,120]
[336996398,1725299450284,-500.0,0.00043835,120]
[336996399,1725299450293,-500.0,0.00043835,120]
[336996400,1725299450303,-500.0,0.00043835,120]
[336996401,1725299450313,-500.0,0.00043835,120]
[336996402,1725299450323,-500.0,0.00043835,120]
[336996403,1725299450333,-500.0,0.00043835,120]
[336996404,1725299450343,-500.0,0.00043835,120]
[336996405,1725299450352,-500.0,0.00043835,120]
[336996406,1725299450361,-500.0,0.00043835,120]
[336996407,1725299450370,-500.0,0.00043835,120]
[336996408,1725299450380,-500.0,0.00043835,120]
[336996409,1725299450389,-500.0,0.00043835,120]
[336996410,1725299450399,-500.0,0.00043835,2]
[336996411,1725299450408,-500.0,0.00043835,120]
[336996412,1725299450417,-500.0,0.00043835,120]
[336996413,1725299450426,-501.37634642,0.00043835,120]
[336996414,1725299450436,-500.0,0.00043835,120]
[336996415,1725299450447,-504.50752661,0.00043835,120]
[336996416,1725299450457,-500.0,0.00043835,120]
[336996417,1725299450468,-500.0,0.00043835,120]
[336996418,1725299450477,-505.64684433,0.00043835,120]
[336996419,1725299450486,-500.0,0.00043835,120]
[336996420,1725299450495,-500.0,0.00043835,120]
[336996421,1725299450505,-500.0,0.00043835,120]
[336996422,1725299450514,-500.0,0.00043835,120]
[336996423,1725299450523,-500.0,0.00043835,120]
[336996424,1725299450532,-500.0,0.00043835,120]
[336996425,1725299450541,-500.0,0.00043835,120]
[336996426,1725299450551,-500.0,0.00043835,120]
[336996427,1725299450560,-501.24669061,0.00043835,120]
[336996428,1725299450569,-500.0,0.00043835,120]
[336996429,1725299450578,-500.0,0.00043835,120]
[336996430,1725299450587,-502.90049717,0.00043835,120]
[336996431,1725299450597,-500.0,0.00043835,120]
[336996432,1725299450606,-596.9275468,0.00043835,120]
[336996433,1725299450615,-500.0,0.00043835,120]
[336996434,1725299450624,-500.0,0.00043835,120]
[336996435,1725299450634,-500.0,0.00043835,120]
[336996436,1725299450643,-500.0,0.00043835,120]
[336996437,1725299450653,-500.0,0.00043835,120]
[336996438,1725299450662,-500.0,0.00043835,120]
[336996439,1725299450672,-500.0,0.00043835,120]
[336996440,1725299450682,-500.0,0.00043835,120]
[336996441,1725299450695,-500.0,0.00043835,120]
[336996442,1725299450776,-500.0,0.00043835,120]
[336996443,1725299450793,-500.0,0.00043835,120]
[336996444,1725299450802,-500.0,0.00043835,120]
[336996445,1725299450812,-500.0,0.00043835,120]
[336996446,1725299450821,-500.0,0.00043835,120]
[336996447,1725299450831,-500.0,0.00043835,120]
[336996448,1725299450841,-1000.0,0.00043835,120]
[336996449,1725299450851,-500.0,0.00043835,120]
[336996450,1725299450860,-500.0,0.00043835,120]
[336996451,1725299450869,-500.0,0.00043835,120]
[336996452,1725299450879,-500.0,0.00043835,120]
[336996453,1725299450889,-606.46,0.00043835,120]
[336996454,1725299450898,-500.0,0.00043835,120]
[336996455,1725299450908,-500.0,0.00043835,120]
[336996456,1725299450917,-500.32313212,0.00043835,120]
[336996457,1725299450927,-500.0,0.00043835,120]
[336996458,1725299450937,-500.0,0.00043835,120]
[336996459,1725299450947,-511.60579899,0.00043835,120]
[336996460,1725299450958,-500.0,0.00043835,120]
[336996461,1725299450968,-500.0,0.00043835,120]
[336996462,1725299450977,-500.0,0.00043835,120]
[336996463,1725299450986,-500.0,0.00043835,120]
[336996464,1725299450996,-500.0,0.00043835,120]
[336996465,1725299451006,-500.0,0.00043835,120]
[336996466,1725299451017,-500.76768178,0.00043835,120]
[336996467,1725299451027,-500.96109679,0.00043835,120]
[336996468,1725299451038,-500.0,0.00043835,120]
[336996469,1725299451048,-500.0,0.00043835,120]
[336996470,1725299451059,-500.0,0.00043835,120]
[336996471,1725299451068,-244.59101297,0.00043835,120]
[336996472,1725299451078,-500.0,0.00043835,120]
[336996473,1725299451087,-509.34,0.00043835,120]
[336996474,1725299451097,-500.87276422,0.00043835,120]
[336996475,1725299451106,-500.0,0.00043835,120]
[336996476,1725299451117,-500.0,0.00043835,120]
[336996477,1725299451127,-513.66884988,0.00043835,120]
[336996478,1725299451137,-865.46,0.00043835,120]
[336996479,1725299451146,-500.0,0.00043835,120]
[336996480,1725299451156,-500.0,0.00043835,120]
[336996481,1725299451165,-500.0,0.00043835,120]
[336996482,1725299451175,-500.0,0.00043835,120]
[336996483,1725299451185,-500.0,0.00043835,120]
[336996484,1725299451194,-500.0,0.00043835,120]
[336996485,1725299451204,-500.0,0.00043835,120]
[336996486,1725299451214,-460.07674919,0.00043835,120]
[336996487,1725299451224,-500.0,0.00043835,120]
[336996488,1725299451234,-500.0,0.00043835,120]
[336996489,1725299451245,-500.0,0.00043835,120]
[336996490,1725299451254,-500.0,0.00043835,120]
[336996491,1725299451263,-523.77740521,0.00043835,120]
[336996492,1725299451273,-501.7539955,0.00043835,120]
[336996493,1725299451282,-500.0,0.00043835,120]
[336996494,1725299451292,-500.0,0.00043835,120]
[336996495,1725299451301,-500.0,0.00043835,120]
[336996496,1725299451312,-500.0,0.00043835,120]
[336996497,1725299451322,-500.0,0.00043835,120]
[336996498,1725299451331,-500.0,0.00043835,120]
[336996499,1725299451340,-500.0,0.00043835,120]
[336996500,1725299451349,-500.0,0.00043835,120]
[336996501,1725299451359,-500.0,0.00043835,120]
[336996502,1725299451368,-521.87047721,0.00043835,120]
[336996503,1725299451378,-500.0,0.00043835,120]
[336996504,1725299451388,-500.0,0.00043835,120]
[336996505,1725299451397,-500.0,0.00043835,120]
[336996506,1725299451407,-500.0,0.00043835,120]
[336996507,1725299451416,-500.0,0.00043835,120]
[336996508,1725299451425,-500.0,0.00043835,120]
[336996509,1725299451435,-500.0,0.00043835,120]
[336996510,1725299451445,-1000.0,0.00043835,5]
[336996511,1725299451454,-500.0,0.00043835,120]
[336996512,1725299451464,-500.0,0.00043835,120]